bitfinex-derivatives/quotes_BTCF0:USTF0_20250626
["timestamp","ask_amount","ask_price","bid_price","bid_amount"]
[1750904138791,1.77418736,107910.0,107900.0,0.5764555]
[1750904139288,1.77418736,107910.0,107900.0,0.3912]
[1750904141388,1.49570982,107910.0,107900.0,0.3912]
[1750904141686,1.77418736,107910.0,107900.0,0.3912]
[1750904149493,1.80478736,107910.0,107900.0,0.3912]
[1750904150488,1.62283334,107910.0,107900.0,0.3912]
[1750904150697,1.80478736,107910.0,107900.0,0.3912]
[1750904153484,1.80478736,107910.0,107900.0,0.5764555]
[1750904153689,0.243,107910.0,107900.0,1.21573304]
[1750904153889,0.4282383,107910.0,107900.0,1.27813304]
[1750904154088,0.243,107910.0,107900.0,1.27813304]
[1750904155398,0.4282383,107910.0,107900.0,1.42181304]
[1750904155996,0.243,107910.0,107900.0,1.42181304]
[1750904156197,0.4282383,107910.0,107900.0,1.42181304]
[1750904156685,0.4282383,107910.0,107900.0,1.85716504]
[1750904156890,0.243,107910.0,107900.0,1.85716504]
[1750904157199,0.4282383,107910.0,107900.0,1.85716504]
[1750904157492,0.45252207,107910.0,107900.0,1.86636829]
[1750904160198,0.45252207,107910.0,107900.0,1.61636829]
[1750904161200,0.45252207,107910.0,107900.0,1.86636829]
[1750904161399,0.4282383,107910.0,107900.0,1.9168475]
[1750904161607,0.4282383,107910.0,107900.0,2.19532504]
[1750904163004,0.4282383,107910.0,107900.0,1.9168475]
[1750904163307,0.4282383,107910.0,107900.0,2.19532504]
[1750904163712,0.4282383,107910.0,107900.0,1.46348504]
[1750904164011,0.4282383,107910.0,107900.0,2.19524504]
[1750904164310,0.4282383,107910.0,107900.0,2.20449202]
[1750904164495,0.4282383,107910.0,107900.0,0.9694555]
[1750904164699,1.10458976,107910.0,107900.0,0.9372555]
[1750904164899,1.78197429,107910.0,107900.0,0.7216]
[1750904165100,1.78197429,107910.0,107900.0,0.9068555]
[1750904165605,1.78197429,107910.0,107900.0,0.7216]
[1750904165999,1.78197429,107910.0,107900.0,0.9068555]
[1750904167305,0.88588453,107910.0,107900.0,1.21643304]
[1750904167507,0.88588453,107910.0,107900.0,1.24863304]
[1750904167907,0.86158,107910.0,107900.0,1.24863304]
[1750904168601,1.0468183,107910.0,107900.0,1.24863304]
[1750904170712,1.2322382,107910.0,107900.0,1.24863304]
[1750904171206,1.2322382,107910.0,107900.0,0.9701555]
[1750904171403,1.2322382,107910.0,107900.0,1.24863304]
[1750904171602,1.2650382,107910.0,107900.0,1.24863304]
[1750904173004,1.2650382,107910.0,107900.0,0.9379555]
[1750904173510,1.2650382,107910.0,107900.0,1.21643304]
[1750904174006,1.2647982,107910.0,107900.0,1.21643304]
[1750904174809,1.44675222,107910.0,107900.0,1.21643304]
[1750904177912,1.44675222,107910.0,107900.0,1.24653304]
[1750904179013,1.2647982,107910.0,107900.0,1.24653304]
[1750904179314,1.44675222,107910.0,107900.0,1.24653304]
[1750904180414,0.4915383,107910.0,107900.0,1.24653304]
[1750904180612,1.0791783,107910.0,107900.0,1.24653304]
[1750904181006,0.4915383,107910.0,107900.0,1.24653304]
[1750904181205,0.4587383,107910.0,107900.0,1.24653304]
[1750904181408,0.4587383,107910.0,107900.0,1.27763304]
[1750904181918,0.4282383,107910.0,107900.0,0.9991555]
[1750904182213,0.4282383,107910.0,107900.0,1.24653304]
[1750904183711,0.243,107910.0,107900.0,1.83413304]
[1750904184014,0.4282383,107910.0,107900.0,1.5556555]
[1750904184214,0.4282383,107910.0,107900.0,1.83413304]
[1750904189431,0.4282383,107910.0,107900.0,1.5556555]
[1750904189630,0.4282383,107910.0,107900.0,1.83413304]
[1750904190534,0.4282383,107910.0,107900.0,1.24653304]
[1750904190728,0.4282383,107910.0,107900.0,1.80379304]
[1750904190926,0.94889228,107910.0,107900.0,0.7216]
[1750904191128,0.979593,107910.0,107900.0,0.9068555]
[1750904193626,1.16154702,107910.0,107900.0,0.9068555]
[1750904195637,0.88306948,107910.0,107900.0,0.9068555]
[1750904195836,1.16154702,107910.0,107900.0,0.9068555]
[1750904199544,1.16154702,107910.0,107900.0,0.7216]
[1750904200642,0.979593,107910.0,107900.0,0.7216]
[1750904200834,0.70111546,107910.0,107900.0,0.7216]
[1750904201034,0.979593,107910.0,107900.0,0.7216]
[1750904201739,0.979593,107910.0,107900.0,0.9068555]
[1750904202444,0.70111546,107910.0,107900.0,0.9068555]
[1750904202743,0.979593,107910.0,107900.0,0.9068555]
[1750904204946,0.979593,107910.0,107900.0,0.7216]
[1750904205639,1.16154702,107910.0,107900.0,0.7216]
[1750904213945,1.16154702,107910.0,107900.0,0.9068555]
[1750904214142,0.8796036,107910.0,107900.0,1.21653304]
[1750904214348,0.63424958,107910.0,107900.0,1.21653304]
[1750904214649,1.22080958,107910.0,107900.0,1.24733304]
[1750904214841,0.63424958,107910.0,107900.0,1.24733304]
[1750904215043,1.22080958,107910.0,107900.0,1.24733304]
[1750904215243,0.63424958,107910.0,107900.0,1.24733304]
[1750904215439,1.22076958,107910.0,107900.0,1.24733304]
[1750904217044,1.22068958,107910.0,107900.0,1.24733304]
[1750904217652,0.63424958,107910.0,107900.0,1.24733304]
[1750904217847,1.22068958,107910.0,107900.0,1.24733304]
[1750904218346,1.40610948,107910.0,107900.0,0.9688555]
[1750904219458,0.81966948,107910.0,107900.0,0.9688555]
[1750904219751,1.40606948,107910.0,107900.0,0.9688555]
[1750904220549,1.43626948,107910.0,107900.0,0.9688555]
[1750904220952,1.43626948,107910.0,107900.0,0.2472555]
[1750904221153,1.43626948,107910.0,107900.0,0.9688555]
[1750904222053,1.43626948,107910.0,107900.0,0.7836]
[1750904222460,1.71474702,107910.0,107900.0,0.7836]
[1750904222761,1.71474702,107910.0,107900.0,0.7528]
[1750904223156,1.71474702,107910.0,107900.0,0.9380555]
[1750904224157,1.43626948,107910.0,107900.0,0.9380555]
[1750904225656,1.43626948,107910.0,107900.0,0.7528]
[1750904226254,1.46926948,107910.0,107900.0,0.7528]
[1750904226459,1.74774702,107910.0,107900.0,0.7528]
[1750904228358,1.74774702,107910.0,107900.0,0.7216]
[1750904233667,1.74774702,107910.0,107900.0,0.3608]
[1750904235669,1.88986702,107910.0,107900.0,0.3608]
[1750904241876,1.57754948,107910.0,107900.0,0.5460555]
[1750904242071,1.57754948,107910.0,107900.0,0.5767555]
[1750904243783,1.39559546,107910.0,107900.0,0.5767555]
[1750904244279,1.03777556,107910.0,107900.0,1.21603304]
[1750904244484,0.45229556,107910.0,107900.0,1.27813304]
[1750904244684,1.03777556,107910.0,107900.0,1.27813304]
[1750904248687,1.21972958,107910.0,107900.0,1.27813304]
[1750904249788,1.03777556,107910.0,107900.0,1.27813304]
[1750904249982,1.21972958,107910.0,107900.0,1.27813304]
[1750904251288,1.03777556,107910.0,107900.0,1.27813304]
[1750904251489,1.21972958,107910.0,107900.0,1.27813304]
[1750904254784,0.26705726,107910.0,107900.0,1.27813304]
[1750904255088,0.82804,107910.0,107900.0,1.27813304]
[1750904256089,0.85242936,107910.0,107900.0,1.27813304]
[1750904256786,0.26738936,107910.0,107900.0,1.27813304]
[1750904257792,0.243,107910.0,107900.0,1.27813304]
[1750904258987,0.243,107910.0,107900.0,1.86305304]
[1750904261987,0.243,107910.0,107900.0,2.11305304]
[1750904262188,0.243,107910.0,107900.0,2.30840504]
[1750904263192,0.243,107910.0,107900.0,2.05840504]
[1750904263792,0.218304,107930.0,107920.0,0.1852212]
[1750904263994,0.548304,107930.0,107920.0,1.20079034]
[1750904264292,0.548304,107930.0,107920.0,1.26259034]
[1750904264793,0.578504,107930.0,107920.0,1.26259034]
[1750904264993,0.583504,107930.0,107920.0,1.27273239]
[1750904265295,0.586504,107930.0,107920.0,1.27273239]
[1750904266595,0.586504,107930.0,107920.0,0.99425485]
[1750904266798,0.586504,107930.0,107920.0,0.96355485]
[1750904268198,0.586504,107930.0,107920.0,1.24203239]
[1750904268797,0.7719239,107930.0,107920.0,1.24203239]
[1750904268996,0.7719239,107930.0,107920.0,0.96355485]
[1750904271298,1.08230144,107930.0,107920.0,0.96355485]
[1750904271502,0.8038239,107930.0,107920.0,0.96355485]
[1750904273905,0.89688154,107930.0,107920.0,0.9233128]
[1750904274101,1.10683662,107930.0,107920.0,0.9233128]
[1750904274908,0.82835908,107930.0,107920.0,0.9233128]
[1750904276297,1.03701628,107930.0,107920.0,1.13197]
[1750904277713,1.2189703,107930.0,107920.0,1.13197]
[1750904278110,1.2189703,107930.0,107920.0,0.9233128]
[1750904278406,1.2189703,107930.0,107920.0,1.13197]
[1750904280812,1.2189703,107930.0,107920.0,0.9233128]
[1750904281014,1.2189703,107930.0,107920.0,1.13197]
[1750904281210,1.0335504,107930.0,107920.0,0.7380916]
[1750904281414,1.4276275,107930.0,107920.0,0.3772916]
[1750904281614,1.4276275,107930.0,107920.0,0.3273916]
[1750904282314,0.3241438,107920.0,107910.0,0.3608]
[1750904282509,1.97595328,107920.0,107910.0,0.3608]
[1750904282816,2.1579073,107920.0,107910.0,0.3608]
[1750904284216,2.01890924,107920.0,107910.0,0.3608]
[1750904286618,2.02190924,107920.0,107910.0,0.3608]
[1750904287118,2.02390924,107920.0,107910.0,0.3608]
[1750904289214,1.97760044,107920.0,107910.0,0.5460383]
[1750904290314,1.97740044,107920.0,107910.0,0.5460383]
[1750904290515,1.97740044,107920.0,107910.0,0.5778383]
[1750904290715,1.39356044,107920.0,107910.0,0.5778383]
[1750904290919,1.97736044,107920.0,107910.0,0.5778383]
[1750904291128,1.6990441,107920.0,107910.0,0.5778383]
[1750904291317,1.1152441,107920.0,107910.0,0.5778383]
[1750904291513,1.6227363,107920.0,107910.0,0.5778383]
[1750904291713,1.6227363,107920.0,107910.0,0.88905464]
[1750904292223,1.0389363,107920.0,107910.0,0.88905464]
[1750904292422,1.6226963,107920.0,107910.0,0.88905464]
[1750904292620,1.4372764,107920.0,107910.0,0.88905464]
[1750904292820,1.6226963,107920.0,107910.0,0.88905464]
[1750904293417,1.6226963,107920.0,107910.0,0.6107383]
[1750904293619,1.4372764,107920.0,107910.0,0.6107383]
[1750904293827,1.6226963,107920.0,107910.0,0.6107383]
[1750904294125,1.6226963,107920.0,107910.0,0.88905464]
[1750904294924,1.6226963,107920.0,107910.0,0.6107383]
[1750904295422,1.90101264,107920.0,107910.0,0.3926]
[1750904295615,1.74659274,107920.0,107910.0,0.3608]
[1750904295821,1.93201264,107920.0,107910.0,0.3608]
[1750904298123,1.79310024,107920.0,107900.0,0.3608]
[1750904298327,0.74647454,107910.0,107900.0,0.5460555]
[1750904298529,1.12100972,107910.0,107900.0,0.5460555]
[1750904298721,1.30296374,107910.0,107900.0,0.3608]
[1750904299229,0.7146474,107910.0,107900.0,0.5460555]
[1750904299529,0.9946474,107910.0,107900.0,0.5460555]
[1750904299731,0.9946474,107910.0,107900.0,0.5791555]
[1750904300326,0.6424474,107910.0,107900.0,0.5791555]
[1750904300631,1.5770474,107910.0,107900.0,0.5791555]
[1750904301433,1.3570074,107910.0,107900.0,0.5791555]
[1750904301630,1.3570074,107910.0,107900.0,0.6094555]
[1750904301836,1.3247074,107910.0,107900.0,0.6094555]
[1750904302028,1.3247074,107910.0,107900.0,0.6426555]
[1750904303240,1.10429348,107910.0,107900.0,0.92097184]
[1750904303433,0.87429348,107910.0,107900.0,0.92097184]
[1750904304236,0.8497583,107910.0,107900.0,0.92097184]
[1750904304737,0.2662383,107910.0,107900.0,0.92097184]
[1750904305241,0.1862383,107910.0,107900.0,0.92097184]
[1750904307842,0.1862383,107910.0,107900.0,0.93097184]
[1750904309043,0.95671222,107910.0,107900.0,1.51429184]
[1750904309443,0.95671222,107910.0,107900.0,1.2359755]
[1750904310542,0.7747582,107910.0,107900.0,1.2359755]
[1750904310743,0.95671222,107910.0,107900.0,1.2359755]
[1750904311043,0.95671222,107910.0,107900.0,0.6526555]
[1750904311636,1.84262093,107910.0,107900.0,0.5460555]
[1750904311834,1.62770459,107910.0,107900.0,0.5460555]
[1750904312045,1.90602093,107910.0,107900.0,0.5460555]
[1750904312336,1.62770459,107910.0,107900.0,0.5460555]
[1750904312541,1.90602093,107910.0,107900.0,0.5460555]
[1750904317047,1.91539096,107910.0,107900.0,0.5460555]
[1750904318648,1.90602093,107910.0,107900.0,0.5460555]
[1750904320050,1.62770459,107910.0,107900.0,0.5460555]
[1750904320353,1.90602093,107910.0,107900.0,0.5460555]
[1750904320645,1.90602093,107910.0,107900.0,0.5793555]
[1750904320947,1.62770459,107910.0,107900.0,0.5793555]
[1750904322248,1.44575057,107910.0,107900.0,0.5793555]
[1750904322450,1.34596629,107910.0,107900.0,0.85767184]
[1750904322751,0.39535237,107910.0,107900.0,0.92207184]
[1750904322955,0.001,107910.0,107900.0,0.92207184]
[1750904326845,0.001,107910.0,107900.0,0.93207184]
[1750904327353,0.1862383,107910.0,107900.0,0.93207184]
[1750904329555,0.001,107910.0,107900.0,0.93207184]
[1750904333455,0.001,107910.0,107900.0,1.29287184]
[1750904334358,0.02512427,107910.0,107900.0,1.29287184]
[1750904334758,0.001,107910.0,107900.0,1.59287184]
[1750904334957,0.2656143,107930.0,107920.0,0.1852212]
[1750904335155,0.84516268,107930.0,107920.0,1.18513754]
[1750904335356,0.84516268,107930.0,107920.0,1.28123754]
[1750904335755,1.0271167,107930.0,107920.0,1.28123754]
[1750904336159,0.795395,107930.0,107920.0,1.28123754]
[1750904336357,0.9517149,107930.0,107920.0,1.28223754]
[1750904336762,0.9848149,107930.0,107920.0,1.28223754]
[1750904337162,0.9878149,107930.0,107920.0,1.28223754]
[1750904337357,0.9878149,107930.0,107920.0,1.0039212]
[1750904338762,0.9878149,107930.0,107920.0,0.9726212]
[1750904338961,1.26613124,107930.0,107920.0,0.9397212]
[1750904339964,0.9878149,107930.0,107920.0,0.9397212]
[1750904341159,1.26613124,107930.0,107920.0,0.9397212]
[1750904341963,0.40212848,107930.0,107920.0,1.22734548]
[1750904342162,0.378,107930.0,107920.0,1.53666182]
[1750904342367,0.378,107930.0,107920.0,1.25834548]
[1750904343161,0.378,107930.0,107920.0,1.32834548]
[1750904343768,0.378,107930.0,107920.0,1.05002914]
[1750904343964,0.378,107930.0,107920.0,1.32834548]
[1750904344973,0.378,107930.0,107920.0,1.40221569]
[1750904345166,0.378,107930.0,107920.0,1.32834548]
[1750904345374,0.378,107930.0,107920.0,1.40221569]
[1750904345566,0.378,107930.0,107920.0,1.68053203]
[1750904345766,0.3107728,107950.0,107940.0,0.1851869]
[1750904345971,0.3107728,107950.0,107940.0,1.2005343]
[1750904345972,0.99814672,107950.0,107940.0,1.2005343]
[1750904346172,0.99814672,107950.0,107940.0,1.2333343]
[1750904347772,0.7698962,107950.0,107940.0,1.2333343]
[1750904347965,0.7758962,107950.0,107940.0,1.2343343]
[1750904348169,0.7758962,107950.0,107940.0,0.95601796]
[1750904348575,0.8027962,107950.0,107940.0,1.2333343]
[1750904348772,0.8027962,107950.0,107940.0,1.30618084]
[1750904348971,0.8027962,107950.0,107940.0,1.0278645]
[1750904349373,0.7565029,107950.0,107940.0,1.0278645]
[1750904349973,0.5713199,107950.0,107940.0,1.0278645]
[1750904350374,0.5414199,107950.0,107940.0,1.33818084]
[1750904351079,0.5414199,107950.0,107940.0,1.30618084]
[1750904351472,0.7265896,107950.0,107940.0,1.0278645]
[1750904351670,0.7595896,107950.0,107940.0,1.0278645]
[1750904352683,0.75612372,107950.0,107940.0,1.0278645]
[1750904352881,0.94154362,107950.0,107940.0,1.0278645]
[1750904353884,0.75637392,107950.0,107940.0,1.0278645]
[1750904356381,0.94154362,107950.0,107940.0,1.0278645]
[1750904357583,0.94154362,107950.0,107940.0,1.30618084]
[1750904358483,0.75637392,107950.0,107940.0,1.0278645]
[1750904359877,0.72337392,107950.0,107940.0,1.0278645]
[1750904360288,0.90854362,107950.0,107940.0,1.0278645]
[1750904360478,0.7265896,107950.0,107940.0,1.0278645]
[1750904360681,0.90854362,107950.0,107940.0,1.30618084]
[1750904361184,0.72337392,107950.0,107940.0,1.30618084]
[1750904361784,0.72337392,107950.0,107940.0,1.0608645]
[1750904361984,0.72337392,107950.0,107940.0,1.33918084]
[1750904362184,0.323,107950.0,107940.0,1.33918084]
[1750904362889,0.5081697,107950.0,107940.0,1.0608645]
[1750904363084,0.5081697,107950.0,107940.0,1.33918084]
[1750904365389,0.323,107950.0,107940.0,1.33918084]
[1750904365786,0.360056,107950.0,107940.0,1.33918084]
[1750904366085,0.360056,107950.0,107940.0,1.0608645]
[1750904366295,0.390656,107950.0,107940.0,1.33918084]
[1750904366678,0.99904006,107950.0,107940.0,1.7495445]
[1750904366881,0.96884362,107950.0,107940.0,1.7495445]
[1750904367286,0.96884362,107950.0,107940.0,1.5766245]
[1750904367589,1.24715996,107950.0,107940.0,1.5766245]
[1750904367888,1.24715996,107950.0,107940.0,0.9950645]
[1750904368990,1.85304994,107950.0,107940.0,0.7216]
[1750904369194,0.1851868,107940.0,107930.0,0.5459955]
[1750904369489,1.22624704,107940.0,107930.0,0.5459955]
[1750904369699,1.25864704,107940.0,107930.0,0.5459955]
[1750904370289,1.25964704,107940.0,107930.0,0.5459955]
[1750904370789,1.26064704,107940.0,107930.0,0.5459955]
[1750904371695,1.26064704,107940.0,107930.0,0.3608]
[1750904371904,0.185204,107930.0,107920.0,0.5460082]
[1750904372101,1.88090424,107930.0,107920.0,0.5460082]
[1750904372304,1.88090424,107930.0,107920.0,0.3608]
[1750904372991,1.88090424,107930.0,107920.0,0.3618]
[1750904373499,1.88090424,107930.0,107920.0,0.3628]
[1750904376602,1.88090424,107930.0,107920.0,0.002]
[1750904381308,1.7426279,107930.0,107920.0,0.002]
[1750904381504,2.02094424,107930.0,107920.0,0.002]
[1750904382611,1.83552434,107930.0,107920.0,0.002]
[1750904382915,2.02094424,107930.0,107920.0,0.002]
[1750904385814,2.02090424,107930.0,107920.0,0.002]
[1750904388705,2.02050424,107930.0,107920.0,0.002]
[1750904388911,1.7421479,107930.0,107920.0,0.1872212]
[1750904389211,2.02046424,107930.0,107920.0,0.0351]
[1750904392016,2.02042424,107930.0,107920.0,0.0351]
[1750904392418,1.99012424,107930.0,107920.0,0.3959]
[1750904394815,1.99012424,107930.0,107920.0,0.002]
[1750904395011,2.02262424,107930.0,107920.0,0.002]
[1750904396427,2.02262424,107930.0,107920.0,0.0339]
[1750904398223,2.02262424,107930.0,107920.0,0.002]
[1750904401522,0.1852383,107910.0,107900.0,0.3608]
[1750904401720,1.94605854,107910.0,107900.0,0.3608]
[1750904401924,2.04145854,107910.0,107900.0,0.3608]
[1750904402729,0.1852555,107900.0,107890.0,0.45782683]
[1750904402927,0.80794182,107900.0,107890.0,0.45782683]
[1750904403129,0.98989584,107900.0,107890.0,0.45782683]
[1750904403324,0.98989584,107900.0,107890.0,0.00092683]
[1750904403524,1.24061574,107900.0,107890.0,0.00092683]
[1750904404325,1.24061574,107900.0,107890.0,0.00292683]
[1750904407729,1.24061574,107900.0,107890.0,0.00392683]
[1750904408732,1.24061574,107900.0,107890.0,0.00192683]
[1750904416231,1.05519584,107900.0,107890.0,0.00192683]
[1750904416431,0.185307,107870.0,107860.0,0.37682631]
[1750904416635,1.36442334,107870.0,107860.0,0.40992631]
[1750904416840,1.79479726,107870.0,107860.0,0.39482708]
[1750904417030,1.82589726,107870.0,107860.0,0.39482708]
[1750904417336,1.89977736,107870.0,107860.0,0.39482708]
[1750904418432,1.89977736,107870.0,107860.0,0.39982708]
[1750904418834,1.89977736,107870.0,107860.0,0.40282708]
[1750904419539,1.89977736,107870.0,107860.0,0.36972708]
[1750904420640,1.48126112,107870.0,107860.0,0.40212708]
[1750904420842,1.94499736,107870.0,107860.0,0.43322708]
[1750904421439,1.17881746,107870.0,107860.0,0.61855128]
[1750904421638,1.40734102,107870.0,107860.0,0.61855128]
[1750904421838,1.26798102,107870.0,107860.0,0.89686762]
[1750904422040,1.26798102,107870.0,107860.0,0.61855128]
[1750904422239,1.086027,107870.0,107860.0,0.89686762]
[1750904422641,0.3246583,107880.0,107870.0,0.185307]
[1750904422842,1.44733232,107880.0,107870.0,0.91902334]
[1750904423037,1.44733232,107880.0,107870.0,0.640707]
[1750904423744,1.72564866,107880.0,107870.0,0.4554]
[1750904423943,1.72564866,107880.0,107870.0,0.4574]
[1750904424139,1.72564866,107880.0,107870.0,0.642707]
[1750904425545,1.72564866,107880.0,107870.0,0.644707]
[1750904426544,1.00556866,107880.0,107870.0,0.644707]
[1750904426747,1.58620866,107880.0,107870.0,0.644707]
[1750904428654,1.24620866,107880.0,107870.0,0.644707]
[1750904428957,0.64556866,107880.0,107870.0,0.644707]
[1750904429160,1.26612866,107880.0,107870.0,0.644707]
[1750904429661,1.28781232,107880.0,107870.0,0.644707]
[1750904430854,1.56612866,107880.0,107870.0,0.644707]
[1750904432756,1.56612866,107880.0,107870.0,0.4594]
[1750904434258,1.59041484,107880.0,107870.0,0.4594]
[1750904434459,1.59041484,107880.0,107870.0,0.644707]
[1750904434660,1.77583474,107880.0,107870.0,0.644707]
[1750904434857,1.77583474,107880.0,107870.0,0.4594]
[1750904435056,1.77583474,107880.0,107870.0,0.4283]
[1750904435254,1.80653474,107880.0,107870.0,0.4283]
[1750904435455,1.83653474,107880.0,107870.0,0.4283]
[1750904435761,1.83653474,107880.0,107870.0,0.3972]
[1750904436359,2.14535108,107880.0,107870.0,0.004]
[1750904436759,1.86703474,107880.0,107870.0,0.004]
[1750904438868,2.14535108,107880.0,107870.0,0.004]
[1750904439059,1.86703474,107880.0,107870.0,0.004]
[1750904439565,2.14535108,107880.0,107870.0,0.004]
[1750904440960,1.86703474,107880.0,107870.0,0.004]
[1750904441265,2.14535108,107880.0,107870.0,0.004]
[1750904442673,1.95993118,107880.0,107870.0,0.004]
[1750904442867,2.50615108,107880.0,107870.0,0.004]
[1750904446669,2.65995108,107880.0,107870.0,0.004]
[1750904449973,0.185307,107870.0,107860.0,0.00092708]
[1750904450178,1.79948344,107870.0,107860.0,0.00092708]
[1750904451673,1.79948344,107870.0,107860.0,0.00292708]
[1750904451975,1.79948344,107870.0,107860.0,0.00592708]
[1750904452174,1.89948344,107870.0,107860.0,0.00592708]
[1750904452569,0.1853414,107850.0,107840.0,0.3921]
[1750904452767,0.82365774,107850.0,107840.0,0.3921]
[1750904452967,1.75497176,107850.0,107840.0,0.3921]
[1750904453174,1.75497176,107850.0,107840.0,0.4234]
[1750904454375,1.72477176,107850.0,107840.0,0.4234]
[1750904454777,1.72477176,107850.0,107840.0,0.4274]
[1750904455076,1.72577176,107850.0,107840.0,0.4334]
[1750904459383,1.44745542,107850.0,107840.0,0.4334]
[1750904459683,1.72577176,107850.0,107840.0,0.4334]
[1750904460985,1.72577176,107850.0,107840.0,0.0726]
[1750904461281,1.72577176,107850.0,107840.0,0.4334]
[1750904461885,1.75737176,107850.0,107840.0,0.4334]
[1750904463290,2.17352529,107850.0,107840.0,0.0413]
[1750904463594,2.35894519,107850.0,107840.0,0.0413]
[1750904463891,3.85894519,107850.0,107840.0,0.0413]
[1750904464590,3.85794519,107850.0,107840.0,0.0373]
[1750904466488,2.77798519,107850.0,107840.0,0.0353]
[1750904466691,3.49694519,107850.0,107840.0,0.3961]
[1750904467088,3.49694519,107850.0,107840.0,0.004]
[1750904467287,0.1853585,107840.0,107830.0,0.00092734]
[1750904467485,1.74586461,107840.0,107830.0,0.00092734]
[1750904467685,1.92781863,107840.0,107830.0,0.03192734]
[1750904468385,1.64950229,107840.0,107830.0,0.03192734]
[1750904468785,1.65050229,107840.0,107830.0,0.03692734]
[1750904469183,2.36946229,107840.0,107830.0,0.03692734]
[1750904469380,2.00866229,107840.0,107830.0,0.03892734]
[1750904472985,1.28970229,107840.0,107830.0,0.03892734]
[1750904473190,2.00866229,107840.0,107830.0,0.03892734]
[1750904477193,0.89052837,107840.0,107830.0,0.03892734]
[1750904477499,0.58061203,107840.0,107830.0,0.39972734]
[1750904477795,1.29953203,107840.0,107830.0,0.43012734]
[1750904477993,0.21061203,107840.0,107830.0,0.61550304]
[1750904478192,0.041,107840.0,107830.0,1.32929138]
[1750904478499,0.1863585,107840.0,107830.0,1.34929138]
[1750904479398,0.1863585,107840.0,107830.0,1.09929138]
[1750904479597,0.1863585,107840.0,107830.0,0.82097504]
[1750904479798,0.1863585,107840.0,107830.0,0.80097504]
[1750904481600,0.1863585,107840.0,107830.0,0.61550304]
[1750904481799,0.46467484,107840.0,107830.0,0.43012734]
[1750904482100,0.81467484,107840.0,107830.0,0.43012734]
[1750904482301,0.81467484,107840.0,107830.0,0.61550304]
[1750904482799,0.46467484,107840.0,107830.0,0.61550304]
[1750904482994,0.5463585,107840.0,107830.0,0.61550304]
[1750904483200,0.7660785,107840.0,107830.0,1.07929138]
[1750904483400,0.1863585,107840.0,107830.0,1.07929138]
[1750904483603,0.1863585,107840.0,107830.0,0.96750031]
[1750904483795,0.1863585,107840.0,107830.0,1.15297231]
[1750904484593,0.2780303,107850.0,107840.0,0.1853585]
[1750904484797,0.6580303,107850.0,107840.0,0.91867484]
[1750904485206,0.2316919,107850.0,107840.0,0.91867484]
[1750904485504,0.2316919,107850.0,107840.0,1.10412284]
[1750904485803,0.2326919,107850.0,107840.0,0.92067484]
[1750904486707,0.2326919,107850.0,107840.0,1.35612284]
[1750904487400,0.2326919,107850.0,107840.0,1.35712284]
[1750904488207,0.2326919,107850.0,107840.0,1.10712284]
[1750904488404,0.2326919,107850.0,107840.0,0.8288065]
[1750904488706,0.2326919,107850.0,107840.0,1.10712284]
[1750904489410,0.1863558,107850.0,107840.0,1.10712284]
[1750904489612,0.001,107850.0,107840.0,1.10712284]
[1750904490112,0.1863413,107850.0,107840.0,1.10712284]
[1750904490509,0.1863413,107850.0,107840.0,0.8288065]
[1750904490709,0.1863413,107850.0,107840.0,1.10712284]
[1750904491315,0.1863413,107850.0,107840.0,0.8288065]
[1750904491918,0.001,107850.0,107840.0,0.8288065]
[1750904492108,0.1863413,107850.0,107840.0,0.8288065]
[1750904492309,0.1863413,107850.0,107840.0,0.6433585]
[1750904492817,0.82465764,107850.0,107840.0,0.6433585]
[1750904493115,0.82465764,107850.0,107840.0,0.5799585]
[1750904493116,1.22223156,107850.0,107840.0,0.5799585]
[1750904493312,1.83195156,107850.0,107840.0,0.5799585]
[1750904495315,1.80175156,107850.0,107840.0,0.5799585]
[1750904496117,1.61641026,107850.0,107840.0,0.5799585]
[1750904496311,1.33809392,107850.0,107840.0,0.6132585]
[1750904496512,0.37837392,107850.0,107840.0,0.89157484]
[1750904496818,0.011,107850.0,107840.0,0.89157484]
[1750904498017,0.1963413,107850.0,107840.0,0.89157484]
[1750904498418,0.1963413,107850.0,107840.0,0.6132585]
[1750904498719,0.011,107850.0,107840.0,0.6132585]
[1750904499113,0.1963413,107850.0,107840.0,0.6132585]
[1750904501421,0.50785764,107850.0,107840.0,0.6132585]
[1750904502415,0.2295413,107850.0,107840.0,0.6132585]
[1750904503216,0.2295413,107850.0,107840.0,0.5799585]
[1750904503415,0.2538464,107850.0,107840.0,0.5799585]
[1750904503615,0.53216274,107850.0,107840.0,0.5799585]
[1750904504418,0.69327754,107850.0,107840.0,0.5799585]
[1750904505817,0.72487754,107850.0,107840.0,0.5799585]
[1750904507120,0.4465612,107850.0,107840.0,0.5799585]
[1750904507421,0.72487754,107850.0,107840.0,0.5799585]
[1750904508017,0.72487754,107850.0,107840.0,0.2191585]
[1750904508219,0.72487754,107850.0,107840.0,0.9407585]
[1750904510323,0.4465612,107850.0,107840.0,0.9407585]
[1750904510621,0.4149612,107850.0,107840.0,0.9407585]
[1750904513219,0.011,107850.0,107840.0,0.9407585]
[1750904513413,0.001,107850.0,107840.0,2.14963484]
[1750904513721,0.001,107850.0,107840.0,1.82963484]
[1750904516123,0.001,107850.0,107840.0,1.96819484]
[1750904525925,0.2168355,107860.0,107850.0,0.1853413]
[1750904526124,0.55717027,107860.0,107850.0,0.93529288]
[1750904527028,0.37183477,107860.0,107850.0,0.93529288]
[1750904527632,0.55378879,107860.0,107850.0,0.93529288]
[1750904528229,0.73911299,107860.0,107850.0,0.93529288]
[1750904529635,0.55715897,107860.0,107850.0,0.93529288]
[1750904529837,0.55715897,107860.0,107850.0,0.93629288]
[1750904530336,0.37183477,107860.0,107850.0,0.93629288]
[1750904530536,0.34033477,107860.0,107850.0,0.93629288]
[1750904530927,0.34033477,107860.0,107850.0,0.93729288]
[1750904531333,0.34133477,107860.0,107850.0,0.93929288]
[1750904531533,0.52665887,107860.0,107850.0,0.93929288]
[1750904531835,0.3164199,107860.0,107850.0,0.93929288]
[1750904533135,0.5017441,107860.0,107850.0,0.93929288]
[1750904533435,0.3163242,107860.0,107850.0,0.93929288]
[1750904533740,0.1863242,107860.0,107850.0,1.18929288]
[1750904535630,0.64659456,107860.0,107850.0,0.81557654]
[1750904535837,1.24691446,107860.0,107850.0,0.57557654]
[1750904536927,1.24691446,107860.0,107850.0,0.56557654]
[1750904539836,1.82615446,107860.0,107850.0,0.56557654]
[1750904541334,1.85118875,107860.0,107850.0,0.38023524]
[1750904541838,1.82615446,107860.0,107850.0,0.38023524]
[1750904542039,1.85118996,107860.0,107850.0,0.38023524]
[1750904543534,1.98966996,107860.0,107850.0,0.38023524]
[1750904545742,1.80771594,107860.0,107850.0,0.38023524]
[1750904545936,1.98966996,107860.0,107850.0,0.38023524]
[1750904550146,1.80771594,107860.0,107850.0,0.38023524]